[Event "Najdorf Memorial-B 2022"]
[Site "Warsaw"]
[Date "2022.07.13"]
[Round "5.17"]
[White "Tsiapko, Andrii"]
[Black "Borys, Marek"]
[Result "1/2-1/2"]
[ECO "A90"]
[WhiteElo "1538"]
[BlackElo "1314"]
[Annotator "NA"]
[PlyCount "39"]
[EventDate "2022.07.09"]
[EventType "swiss"]
[EventCountry "POL"]
[SourceTitle "playchess.com"]
[Source "ChessBase"]
[SourceQuality "1"]
[TimeControl "40/5400+30:1800+30"]

1. d4 {[%emt 0:00:03]} f5 {[%emt 0:00:14]} 2. c4 {[%emt 0:00:16]} Nf6 {[%emt 0:00:20]} 3. g3 {[%emt 0:00:15]} e6 {[%emt 0:00:14]} 4. Bg2 {[%emt 0:00:17]} d5 {[%emt 0:00:31]} 5. Nf3 {[%emt 0:00:35]} c6 {[%emt 0:00:31]} 6. O-O {[%emt 0:00:37]} Be7 {[%emt 0:00:15]} 7. Nbd2 {[%emt 0:01:07]} O-O {[%emt 0:00:22]} 8. Ne5 {[%emt 0:00:30]} Qe8 {[%emt 0:04:36]} 9. Qc2 {[%emt 0:01:01]} Qh5 {[%emt 0:01:40]} 10. Ndf3 {[%emt 0:02:53]} Ne4 {[%emt 0:02:54]} 11. Nd3 {[%emt 0:05:28]} g5 {[%emt 0:07:06]} 12. b4 {[%emt 0:09:12]} Nd7 {[%emt 0:18:40]} 13. b5 {[%emt 0:13:37]} cxb5 {[%emt 0:27:47]} 14. cxb5 {[%emt 0:01:41]} Bd6 {[%emt 0:00:47]} 15. Nfe5 {[%emt 0:10:51]} Kh8 {[%emt 0:08:41]} 16. f4 {[%emt 0:11:18]} g4 {[%emt 0:00:43]} 17. a4 {[%emt 0:00:55]} Rf6 {[%emt 0:00:39]} 18. e3 {[%emt 0:02:28]} Rh6 {[%emt 0:00:23]} 19. Bxe4 {[%emt 0:00:58]} fxe4 {[%emt 0:00:25]} 20. Ne1 {[%emt 0:01:46]} 1/2-1/2

[Event "Najdorf Memorial-B 2022"]
[Site "Warsaw"]
[Date "2022.07.14"]
[Round "6.1"]
[White "Slusarczyk, Anna"]
[Black "Bubien, Antoni"]
[Result "1/2-1/2"]
[ECO "A48"]
[WhiteElo "1637"]
[BlackElo "1472"]
[Annotator "NA"]
[PlyCount "141"]
[EventDate "2022.07.09"]
[EventType "swiss"]
[EventCountry "POL"]
[SourceTitle "playchess.com"]
[Source "ChessBase"]
[SourceQuality "1"]
[TimeControl "40/5400+30:1800+30"]

1. d4 {[%emt 0:00:01]} Nf6 {[%emt 0:00:08]} 2. Nf3 {[%emt 0:00:03]} g6 {[%emt 0:00:07]} 3. Bf4 {[%emt 0:00:03]} Bg7 {[%emt 0:00:07]} 4. e3 {[%emt 0:00:04]} d6 {[%emt 0:00:05]} 5. h3 {[%emt 0:00:02]} O-O {[%emt 0:00:18]} 6. Bh2 {[%emt 0:00:07]} c5 {[%emt 0:00:05]} 7. c3 {[%emt 0:00:27]} Qb6 {[%emt 0:00:10]} 8. Qb3 {[%emt 0:07:09]} Be6 {[%emt 0:01:04]} 9. c4 {[%emt 0:05:56]} Nbd7 {[%emt 0:07:55]} 10. Nbd2 {[%emt 0:08:23]} d5 {[%emt 0:08:27]} 11. Qxb6 {[%emt 0:03:01]} axb6 {[%emt 0:01:27]} 12. cxd5 {[%emt 0:07:34]} Bxd5 {[%emt 0:04:00]} 13. Bb5 {[%emt 0:16:51]} Rfc8 {[%emt 0:13:23]} 14. O-O {[%emt 0:03:07]} Nf8 {[%emt 0:01:14]} 15. a4 {[%emt 0:15:19]} Ne6 {[%emt 0:02:09]} 16. Be5 {[%emt 0:01:48]} cxd4 {[%emt 0:06:18]} 17. exd4 {[%emt 0:06:23]} Rc2 {[%emt 0:01:25]} 18. b3 {[%emt 0:02:20]} Bh6 {[%emt 0:07:34]} 19. Bd3 {[%emt 0:09:58]} Rxd2 {[%emt 0:01:58]} 20. Nxd2 {[%emt 0:00:26]} Bxd2 {[%emt 0:00:05]} 21. Rad1 {[%emt 0:03:27]} Bh6 {[%emt 0:01:48]} 22. Rb1 {[%emt 0:07:44]} Rc8 {[%emt 0:00:54]} 23. Bc4 {[%emt 0:00:22]} Bxc4 {[%emt 0:04:08]} 24. bxc4 {[%emt 0:00:04]} Nd7 {[%emt 0:01:51]} 25. d5 {[%emt 0:01:34]} Nxe5 {[%emt 0:01:28]} 26. dxe6 {[%emt 0:00:05]} Nxc4 {[%emt 0:00:20]} 27. Rfe1 {[%emt 0:00:26]} f5 {[%emt 0:04:44]} 28. Red1 {[%emt 0:00:51]} Rc6 {[%emt 0:02:27]} 29. Rd7 {[%emt 0:00:45]} Rxe6 {[%emt 0:00:16]} 30. Rxb7 {[%emt 0:00:09]} Kf7 {[%emt 0:00:38]} 31. Rc7 {[%emt 0:00:10]} Nd2 {[%emt 0:00:41]} 32. Rd1 {[%emt 0:00:40]} Re4 {[%emt 0:06:44]} 33. Ra7 {[%emt 0:01:07]} Bg5 {[%emt 0:04:05]} 34. a5 {[%emt 0:00:24]} bxa5 {[%emt 0:00:20]} 35. Rxa5 {[%emt 0:00:07]} Re2 {[%emt 0:01:21]} 36. f3 {[%emt 0:00:47]} Nc4 {[%emt 0:00:32]} 37. Rad5 {[%emt 0:00:37]} Ne3 {[%emt 0:00:10]} 38. R5d2 {[%emt 0:00:23]} Rxd2 {[%emt 0:01:24]} 39. Rxd2 {[%emt 0:00:05]} Bh4 {[%emt 0:04:39]} 40. Rd3 {[%emt 0:00:00]} f4 {[%emt 0:00:00]} 41. Rd4 {[%emt 0:01:43]} g5 {[%emt 0:02:48]} 42. Rd8 {[%emt 0:00:19]} h6 {[%emt 0:05:29]} 43. Rh8 {[%emt 0:00:56]} Kg7 {[%emt 0:00:31]} 44. Re8 {[%emt 0:00:06]} Kf6 {[%emt 0:00:08]} 45. Rh8 {[%emt 0:00:34]} Nf5 {[%emt 0:00:06]} 46. Kf1 {[%emt 0:01:19]} Ke5 {[%emt 0:00:33]} 47. Ke2 {[%emt 0:00:11]} Ne3 {[%emt 0:01:10]} 48. Rxh6 {[%emt 0:00:37]} Nxg2 {[%emt 0:00:08]} 49. Ra6 {[%emt 0:00:31]} Kf5 {[%emt 0:00:32]} 50. Ra5+ {[%emt 0:01:06]} e5 {[%emt 0:00:07]} 51. Ra8 {[%emt 0:00:05]} Ne3 {[%emt 0:00:18]} 52. Rf8+ {[%emt 0:01:26]} Ke6 {[%emt 0:00:00]} 53. Re8+ {[%emt 0:00:09]} Kf6 54. Rf8+ Ke7 {[%emt 0:00:34]} 55. Ra8 {[%emt 0:00:33]} Nc2 {[%emt 0:00:14]} 56. Kd3 {[%emt 0:02:27]} Nd4 {[%emt 0:04:43]} 57. Ke4 {[%emt 0:00:09]} Kd6 {[%emt 0:06:00]} 58. Rg8 {[%emt 0:03:22]} Ne2 {[%emt 0:09:16]} 59. Rg6+ {[%emt 0:14:02]} Kc5 {[%emt 0:02:20]} 60. Re6 {[%emt 0:00:13]} Ng1 {[%emt 0:02:16]} 61. Rxe5+ {[%emt 0:04:25]} Kc4 {[%emt 0:00:43]} 62. Re8 {[%emt 0:00:16]} Kc3 63. Rd8 Nxh3 {[%emt 0:00:38]} 64. Rd7 {[%emt 0:02:01]} Nf2+ {[%emt 0:01:32]} 65. Kf5 {[%emt 0:00:52]} Nd3 {[%emt 0:00:26]} 66. Rd6 {[%emt 0:01:02]} Kd2 {[%emt 0:00:23]} 67. Ke4 {[%emt 0:00:14]} Ke2 {[%emt 0:00:45]} 68. Rxd3 {[%emt 0:00:17]} Kf2 {[%emt 0:00:19]} 69. Ra3 {[%emt 0:00:25]} Kg2 {[%emt 0:00:40]} 70. Kf5 {[%emt 0:02:23]} Kg3 {[%emt 0:00:13]} 71. Ke4 1/2-1/2

[Event "Najdorf Memorial-B 2022"]
[Site "Warsaw"]
[Date "2022.07.14"]
[Round "6.2"]
[White "Terkiewicz, Bruno"]
[Black "Dysko, Michal"]
[Result "1-0"]
[ECO "B42"]
[WhiteElo "1473"]
[BlackElo "1376"]
[Annotator "NA"]
[PlyCount "41"]
[EventDate "2022.07.09"]
[EventType "swiss"]
[EventCountry "POL"]
[SourceTitle "playchess.com"]
[Source "ChessBase"]
[SourceQuality "1"]
[TimeControl "40/5400+30:1800+30"]

1. e4 {[%emt 0:00:01]} c5 {[%emt 0:00:06]} 2. Nf3 {[%emt 0:00:03]} e6 {[%emt 0:00:18]} 3. d4 {[%emt 0:00:10]} cxd4 {[%emt 0:00:39]} 4. Nxd4 {[%emt 0:00:16]} a6 {[%emt 0:00:15]} 5. Bd3 {[%emt 0:00:16]} Nf6 {[%emt 0:00:06]} 6. O-O {[%emt 0:00:19]} Qc7 {[%emt 0:00:36]} 7. Nc3 {[%emt 0:01:40]} Be7 {[%emt 0:01:30]} 8. Qe2 {[%emt 0:02:18]} d6 {[%emt 0:00:07]} 9. Be3 {[%emt 0:01:31]} O-O {[%emt 0:00:28]} 10. f4 {[%emt 0:00:47]} Nbd7 {[%emt 0:08:17]} 11. g4 {[%emt 0:03:06]} Nc5 {[%emt 0:01:10]} 12. g5 {[%emt 0:00:34]} Nfd7 {[%emt 0:01:06]} 13. f5 {[%emt 0:04:35]} b5 {[%emt 0:04:25]} 14. Qh5 {[%emt 0:08:08]} Bb7 {[%emt 0:12:28]} 15. f6 {[%emt 0:08:36]} gxf6 {[%emt 0:00:41]} 16. gxf6 {[%emt 0:01:58]} Nxf6 {[%emt 0:00:17]} 17. Rxf6 {[%emt 0:05:38]} Bxf6 {[%emt 0:00:15]} 18. e5 {[%emt 0:00:05]} Nxd3 {[%emt 0:01:27]} 19. exf6 {[%emt 0:00:23]} Kh8 {[%emt 0:12:04]} 20. Bh6 {[%emt 0:25:20]} Qc5 {[%emt 0:02:35]} 21. Qg4 {[%emt 0:01:44]} 1-0

[Event "Najdorf Memorial-B 2022"]
[Site "Warsaw"]
[Date "2022.07.14"]
[Round "6.3"]
[White "Yasmo, Daniil"]
[Black "Trochimczuk, Szymon"]
[Result "1-0"]
[ECO "D20"]
[WhiteElo "1680"]
[BlackElo "1480"]
[Annotator "NA"]
[PlyCount "133"]
[EventDate "2022.07.09"]
[EventType "swiss"]
[EventCountry "POL"]
[SourceTitle "playchess.com"]
[Source "ChessBase"]
[SourceQuality "1"]
[TimeControl "40/5400+30:1800+30"]

1. d4 {[%emt 0:00:03]} d5 {[%emt 0:00:04]} 2. c4 {[%emt 0:00:05]} dxc4 {[%emt 0:00:03]} 3. Nc3 {[%emt 0:00:09]} a6 {[%emt 0:00:09]} 4. a4 {[%emt 0:00:13]} Nc6 {[%emt 0:00:19]} 5. Nf3 {[%emt 0:00:41]} Bg4 {[%emt 0:00:58]} 6. d5 {[%emt 0:04:05]} Na5 {[%emt 0:02:49]} 7. Ne5 {[%emt 0:04:32]} Bd7 {[%emt 0:07:37]} 8. e4 {[%emt 0:01:47]} Nb3 {[%emt 0:07:38]} 9. Ra2 {[%emt 0:05:08]} Nxc1 {[%emt 0:00:28]} 10. Qxc1 {[%emt 0:00:03]} e6 {[%emt 0:04:16]} 11. Bxc4 {[%emt 0:00:48]} Bd6 {[%emt 0:03:46]} 12. Nxd7 {[%emt 0:03:37]} Qxd7 {[%emt 0:00:33]} 13. Qg5 {[%emt 0:01:12]} f6 {[%emt 0:01:32]} 14. Qh5+ {[%emt 0:01:14]} g6 {[%emt 0:00:19]} 15. dxe6 {[%emt 0:00:50]} gxh5 {[%emt 0:02:21]} 16. exd7+ {[%emt 0:00:02]} Kxd7 {[%emt 0:00:16]} 17. O-O {[%emt 0:01:03]} Ne7 {[%emt 0:03:02]} 18. Be2 {[%emt 0:01:08]} h4 {[%emt 0:02:26]} 19. Bg4+ {[%emt 0:00:34]} Ke8 {[%emt 0:01:42]} 20. b3 {[%emt 0:02:13]} Kf7 {[%emt 0:03:01]} 21. f4 {[%emt 0:02:40]} Bc5+ {[%emt 0:04:47]} 22. Kh1 {[%emt 0:00:06]} Bb4 {[%emt 0:02:12]} 23. Rc2 {[%emt 0:02:25]} c6 {[%emt 0:04:16]} 24. e5 {[%emt 0:02:32]} Bxc3 {[%emt 0:01:38]} 25. Rxc3 {[%emt 0:00:04]} f5 {[%emt 0:02:18]} 26. Bh5+ {[%emt 0:00:19]} Ng6 {[%emt 0:11:23]} 27. Rd3 {[%emt 0:02:45]} Rad8 {[%emt 0:02:53]} 28. Rfd1 {[%emt 0:01:33]} Rxd3 {[%emt 0:00:51]} 29. Rxd3 {[%emt 0:00:03]} Ke7 {[%emt 0:02:07]} 30. g3 {[%emt 0:01:15]} hxg3 {[%emt 0:05:55]} 31. hxg3 {[%emt 0:00:01]} Nf8 {[%emt 0:01:47]} 32. Kg2 {[%emt 0:03:55]} Ne6 {[%emt 0:01:09]} 33. b4 {[%emt 0:02:10]} c5 {[%emt 0:01:48]} 34. bxc5 {[%emt 0:00:54]} Nxc5 {[%emt 0:00:05]} 35. Rc3 {[%emt 0:00:20]} Ne6 {[%emt 0:01:12]} 36. Rb3 {[%emt 0:04:33]} Nc5 {[%emt 0:02:38]} 37. Rb6 {[%emt 0:00:26]} Rg8 {[%emt 0:05:31]} 38. Rf6 {[%emt 0:05:11]} Ne4 {[%emt 0:00:28]} 39. Rf7+ {[%emt 0:00:17]} Ke6 {[%emt 0:02:58]} 40. g4 {[%emt 0:00:00]} fxg4 {[%emt 0:00:00]} 41. Rxb7 {[%emt 0:01:11]} Rf8 {[%emt 0:02:20]} 42. Bxg4+ {[%emt 0:00:18]} Kd5 {[%emt 0:00:24]} 43. Rd7+ {[%emt 0:01:01]} Kc6 {[%emt 0:00:31]} 44. Rd4 {[%emt 0:00:51]} Nc5 {[%emt 0:06:24]} 45. f5 {[%emt 0:01:43]} Nd7 {[%emt 0:01:31]} 46. Rd6+ {[%emt 0:01:26]} Kc7 {[%emt 0:00:12]} 47. Re6 {[%emt 0:01:02]} h5 {[%emt 0:00:38]} 48. Bh3 {[%emt 0:00:17]} Nc5 {[%emt 0:02:35]} 49. Re7+ {[%emt 0:00:27]} Kc6 {[%emt 0:01:17]} 50. f6 {[%emt 0:02:32]} Nd3 {[%emt 0:01:51]} 51. Bf5 {[%emt 0:01:08]} Nf4+ {[%emt 0:04:05]} 52. Kf3 {[%emt 0:00:22]} Nd5 {[%emt 0:00:18]} 53. Re6+ {[%emt 0:00:45]} Kc5 {[%emt 0:00:08]} 54. Rxa6 {[%emt 0:00:37]} Kd4 {[%emt 0:00:47]} 55. Re6 {[%emt 0:01:04]} Nc7 {[%emt 0:00:15]} 56. Kf4 {[%emt 0:07:26]} Nxe6+ {[%emt 0:03:44]} 57. Bxe6 {[%emt 0:00:03]} h4 {[%emt 0:03:51]} 58. Bh3 {[%emt 0:01:46]} Kd5 {[%emt 0:04:17]} 59. Kf5 {[%emt 0:00:13]} Kc6 {[%emt 0:01:06]} 60. Kg6 {[%emt 0:01:02]} Kd5 {[%emt 0:01:21]} 61. e6 Kd6 62. e7 {[%emt 0:01:07]} Rb8 {[%emt 0:02:55]} 63. Kf7 {[%emt 0:00:15]} Ke5 {[%emt 0:00:27]} 64. e8=Q+ {[%emt 0:01:07]} Rxe8 {[%emt 0:00:10]} 65. Kxe8 {[%emt 0:00:02]} Kxf6 {[%emt 0:00:07]} 66. Kd7 {[%emt 0:00:12]} Ke5 {[%emt 0:00:09]} 67. Kc6 {[%emt 0:00:06]} 1-0

[Event "Najdorf Memorial-B 2022"]
[Site "Warsaw"]
[Date "2022.07.14"]
[Round "6.4"]
[White "Jaroszuk, Marcin"]
[Black "Michalowski, Patryk"]
[Result "0-1"]
[ECO "E07"]
[WhiteElo "1476"]
[BlackElo "1726"]
[Annotator "NA"]
[PlyCount "78"]
[EventDate "2022.07.09"]
[EventType "swiss"]
[EventCountry "POL"]
[SourceTitle "playchess.com"]
[Source "ChessBase"]
[SourceQuality "1"]
[TimeControl "40/5400+30:1800+30"]

1. Nf3 {[%emt 0:00:13]} d5 {[%emt 0:00:24]} 2. g3 {[%emt 0:00:07]} Nf6 {[%emt 0:00:13]} 3. Bg2 {[%emt 0:00:07]} e6 {[%emt 0:00:14]} 4. O-O {[%emt 0:00:26]} Be7 {[%emt 0:00:06]} 5. d4 {[%emt 0:00:20]} O-O {[%emt 0:00:15]} 6. c4 {[%emt 0:00:10]} Nbd7 {[%emt 0:00:18]} 7. cxd5 {[%emt 0:05:28]} exd5 {[%emt 0:00:11]} 8. Nc3 {[%emt 0:00:35]} c6 {[%emt 0:00:42]} 9. Qc2 {[%emt 0:02:18]} Nb6 {[%emt 0:01:28]} 10. Ne5 {[%emt 0:03:13]} Nfd7 {[%emt 0:11:46]} 11. Nf3 {[%emt 0:07:33]} Nc4 {[%emt 0:05:10]} 12. h4 {[%emt 0:00:32]} Nf6 {[%emt 0:01:56]} 13. Bf4 {[%emt 0:08:26]} Nd6 {[%emt 0:01:32]} 14. Rad1 {[%emt 0:07:08]} Bf5 {[%emt 0:02:34]} 15. Qc1 {[%emt 0:00:16]} Nfe4 {[%emt 0:03:32]} 16. Ng5 {[%emt 0:09:59]} Bxg5 {[%emt 0:05:22]} 17. hxg5 {[%emt 0:03:02]} Re8 {[%emt 0:00:44]} 18. Rfe1 {[%emt 0:09:37]} Re6 {[%emt 0:11:24]} 19. Bf3 {[%emt 0:07:39]} Nxc3 {[%emt 0:07:36]} 20. bxc3 {[%emt 0:00:44]} Nc4 {[%emt 0:00:45]} 21. g4 {[%emt 0:05:47]} Bg6 {[%emt 0:01:24]} 22. e3 {[%emt 0:01:05]} Qa5 {[%emt 0:03:53]} 23. Qa1 {[%emt 0:01:05]} Bc2 {[%emt 0:09:49]} 24. Rc1 {[%emt 0:01:33]} Nd2 {[%emt 0:00:40]} 25. Be2 {[%emt 0:02:31]} Be4 {[%emt 0:00:20]} 26. Red1 {[%emt 0:02:08]} Nf3+ {[%emt 0:00:34]} 27. Kf1 {[%emt 0:00:31]} Qd8 {[%emt 0:01:00]} 28. Qb2 {[%emt 0:02:22]} b5 {[%emt 0:02:01]} 29. a4 {[%emt 0:03:49]} a6 {[%emt 0:07:47]} 30. Qa3 {[%emt 0:01:15]} h6 {[%emt 0:03:05]} 31. gxh6 {[%emt 0:02:50]} Qh4 {[%emt 0:00:09]} 32. Bd3 {[%emt 0:00:09]} Qh3+ {[%emt 0:05:04]} 33. Ke2 {[%emt 0:00:18]} Qxg4 {[%emt 0:00:07]} 34. Kf1 {[%emt 0:05:47]} Qh3+ {[%emt 0:06:12]} 35. Ke2 {[%emt 0:00:07]} Qh5 {[%emt 0:00:30]} 36. Kf1 {[%emt 0:01:57]} Rg6 {[%emt 0:00:25]} 37. h7+ {[%emt 0:00:55]} Kh8 {[%emt 0:00:19]} 38. Bxe4 {[%emt 0:02:40]} Rg1+ {[%emt 0:00:28]} 39. Ke2 {[%emt 0:00:14]} Nxd4+ 0-1

[Event "Najdorf Memorial-B 2022"]
[Site "Warsaw"]
[Date "2022.07.14"]
[Round "6.5"]
[White "Kurowski, Maciej"]
[Black "Napieralski, Lucjan"]
[Result "0-1"]
[ECO "C00"]
[WhiteElo "1601"]
[BlackElo "1414"]
[Annotator "NA"]
[PlyCount "47"]
[EventDate "2022.07.09"]
[EventType "swiss"]
[EventCountry "POL"]
[SourceTitle "playchess.com"]
[Source "ChessBase"]
[SourceQuality "1"]
[TimeControl "40/5400+30:1800+30"]

1. d4 {[%emt 0:00:06]} e6 {[%emt 0:00:05]} 2. e4 {[%emt 0:00:16]} d5 {[%emt 0:00:04]} 3. Bd3 {[%emt 0:00:11]} Nf6 {[%emt 0:00:29]} 4. e5 {[%emt 0:00:09]} Nfd7 {[%emt 0:00:07]} 5. Nf3 {[%emt 0:00:33]} c5 {[%emt 0:00:08]} 6. c3 {[%emt 0:00:05]} Nc6 {[%emt 0:00:07]} 7. O-O {[%emt 0:01:04]} Qb6 {[%emt 0:00:44]} 8. Bc2 {[%emt 0:00:26]} cxd4 {[%emt 0:02:53]} 9. cxd4 {[%emt 0:00:07]} Nb4 {[%emt 0:00:18]} 10. Ba4 {[%emt 0:01:03]} Be7 {[%emt 0:01:29]} 11. Nc3 {[%emt 0:01:06]} O-O {[%emt 0:03:03]} 12. Re1 {[%emt 0:04:38]} f6 {[%emt 0:06:41]} 13. a3 {[%emt 0:24:10]} Nc6 {[%emt 0:02:00]} 14. Bc2 {[%emt 0:07:01]} fxe5 {[%emt 0:10:15]} 15. Na4 {[%emt 0:00:55]} Qc7 {[%emt 0:05:55]} 16. Nxe5 {[%emt 0:03:48]} Ndxe5 {[%emt 0:04:47]} 17. dxe5 {[%emt 0:00:14]} Nxe5 {[%emt 0:00:53]} 18. Bxh7+ {[%emt 0:12:29]} Kxh7 {[%emt 0:02:37]} 19. Qh5+ {[%emt 0:00:05]} Kg8 {[%emt 0:00:10]} 20. Qxe5 {[%emt 0:00:07]} Qc2 {[%emt 0:16:26]} 21. Bg5 {[%emt 0:02:33]} Bxg5 {[%emt 0:03:05]} 22. Qxg5 {[%emt 0:00:07]} Qxa4 {[%emt 0:00:15]} 23. Re3 {[%emt 0:00:11]} Qf4 {[%emt 0:00:52]} 24. Qf5 0-1

[Event "Najdorf Memorial-B 2022"]
[Site "Warsaw"]
[Date "2022.07.14"]
[Round "6.6"]
[White "Jaszczuk, Piotr"]
[Black "Tsiapko, Andrii"]
[Result "0-1"]
[ECO "B36"]
[WhiteElo "1389"]
[BlackElo "1538"]
[Annotator "NA"]
[PlyCount "36"]
[EventDate "2022.07.09"]
[EventType "swiss"]
[EventCountry "POL"]
[SourceTitle "playchess.com"]
[Source "ChessBase"]
[SourceQuality "1"]
[TimeControl "40/5400+30:1800+30"]

1. e4 {[%emt 0:00:02]} c5 {[%emt 0:00:10]} 2. Nf3 {[%emt 0:00:08]} Nc6 {[%emt 0:00:20]} 3. d4 {[%emt 0:00:35]} cxd4 {[%emt 0:00:11]} 4. Nxd4 {[%emt 0:00:09]} g6 {[%emt 0:00:35]} 5. c4 {[%emt 0:01:05]} Nf6 {[%emt 0:00:37]} 6. Nc3 {[%emt 0:01:14]} d6 {[%emt 0:00:26]} 7. Be3 {[%emt 0:04:02]} Ng4 {[%emt 0:03:31]} 8. Qd2 {[%emt 0:04:07]} Nxe3 {[%emt 0:01:07]} 9. Qxe3 {[%emt 0:00:13]} Bg7 {[%emt 0:07:05]} 10. Nc2 {[%emt 0:05:28]} Qa5 {[%emt 0:06:48]} 11. Kd2 {[%emt 0:06:24]} Be6 {[%emt 0:05:09]} 12. f4 {[%emt 0:02:41]} Rc8 {[%emt 0:02:11]} 13. b3 {[%emt 0:06:01]} b5 {[%emt 0:04:32]} 14. cxb5 {[%emt 0:23:53]} Nb4 {[%emt 0:08:12]} 15. Nd4 {[%emt 0:07:44]} Qb6 {[%emt 0:03:09]} 16. Nce2 {[%emt 0:05:19]} Nc2 {[%emt 0:02:07]} 17. Qd3 {[%emt 0:06:33]} Nxd4 {[%emt 0:04:05]} 18. Nxd4 {[%emt 0:01:17]} Bxd4 {[%emt 0:00:12]} 0-1

[Event "Najdorf Memorial-B 2022"]
[Site "Warsaw"]
[Date "2022.07.14"]
[Round "6.7"]
[White "Piddubna, Bozhena"]
[Black "Adamowicz, Michal"]
[Result "1-0"]
[ECO "A28"]
[WhiteElo "1534"]
[BlackElo "1408"]
[Annotator "NA"]
[PlyCount "38"]
[EventDate "2022.07.09"]
[EventType "swiss"]
[EventCountry "POL"]
[SourceTitle "playchess.com"]
[Source "ChessBase"]
[SourceQuality "1"]
[TimeControl "40/5400+30:1800+30"]

1. c4 {[%emt 0:00:03]} e5 {[%emt 0:00:04]} 2. Nc3 {[%emt 0:00:14]} Nf6 {[%emt 0:00:14]} 3. Nf3 {[%emt 0:00:06]} Nc6 {[%emt 0:00:04]} 4. e4 {[%emt 0:00:07]} Bb4 {[%emt 0:00:04]} 5. d3 {[%emt 0:00:09]} d6 {[%emt 0:00:12]} 6. a3 {[%emt 0:00:04]} Bxc3+ {[%emt 0:00:05]} 7. bxc3 {[%emt 0:00:06]} Nd7 {[%emt 0:01:57]} 8. Be2 {[%emt 0:04:20]} O-O {[%emt 0:00:17]} 9. Qc2 {[%emt 0:01:33]} b6 {[%emt 0:02:26]} 10. O-O {[%emt 0:00:29]} a5 {[%emt 0:01:25]} 11. a4 {[%emt 0:09:52]} Nc5 {[%emt 0:18:50]} 12. Ne1 {[%emt 0:07:01]} f5 {[%emt 0:00:38]} 13. exf5 {[%emt 0:00:48]} Bxf5 {[%emt 0:00:09]} 14. Bf3 {[%emt 0:00:18]} Qd7 {[%emt 0:00:54]} 15. Bd5+ {[%emt 0:02:51]} Kh8 {[%emt 0:01:53]} 16. Qd1 {[%emt 0:11:49]} Rae8 {[%emt 0:01:12]} 17. d4 {[%emt 0:03:26]} Ne4 {[%emt 0:01:49]} 18. Bxe4 {[%emt 0:03:59]} Bxe4 {[%emt 0:00:07]} 19. f3 {[%emt 0:02:34]} Bg6 {[%emt 0:03:06]} 1-0

[Event "Najdorf Memorial-B 2022"]
[Site "Warsaw"]
[Date "2022.07.14"]
[Round "6.8"]
[White "Swicarz, Jakub"]
[Black "Leszczewicz, Karol"]
[Result "0-1"]
[ECO "A37"]
[WhiteElo "1152"]
[BlackElo "1519"]
[Annotator "NA"]
[PlyCount "88"]
[EventDate "2022.07.09"]
[EventType "swiss"]
[EventCountry "POL"]
[SourceTitle "playchess.com"]
[Source "ChessBase"]
[SourceQuality "1"]
[TimeControl "40/5400+30:1800+30"]

1. c4 {[%emt 0:02:14]} c5 {[%emt 0:00:10]} 2. g3 {[%emt 0:00:03]} g6 {[%emt 0:00:28]} 3. Bg2 {[%emt 0:00:04]} Bg7 {[%emt 0:00:08]} 4. Nc3 {[%emt 0:00:04]} Nc6 {[%emt 0:00:11]} 5. Nf3 {[%emt 0:00:10]} e6 {[%emt 0:01:40]} 6. d3 {[%emt 0:01:44]} Nge7 {[%emt 0:00:15]} 7. Be3 {[%emt 0:00:47]} b6 {[%emt 0:00:52]} 8. d4 {[%emt 0:00:46]} cxd4 {[%emt 0:00:27]} 9. Nxd4 {[%emt 0:02:37]} Bb7 {[%emt 0:00:18]} 10. Ncb5 {[%emt 0:04:17]} d5 {[%emt 0:05:54]} 11. cxd5 {[%emt 0:03:48]} Nxd5 {[%emt 0:00:30]} 12. Bxd5 {[%emt 0:20:40]} exd5 {[%emt 0:00:38]} 13. Rc1 {[%emt 0:00:47]} Qd7 {[%emt 0:06:10]} 14. Bf4 {[%emt 0:04:47]} O-O {[%emt 0:03:53]} 15. Nxc6 {[%emt 0:03:20]} Bxc6 {[%emt 0:00:42]} 16. Nd4 {[%emt 0:00:03]} Rac8 {[%emt 0:02:55]} 17. Nxc6 {[%emt 0:03:07]} Rxc6 {[%emt 0:00:15]} 18. Rxc6 {[%emt 0:00:10]} Qxc6 {[%emt 0:00:12]} 19. b3 {[%emt 0:00:06]} Qc3+ {[%emt 0:06:19]} 20. Bd2 {[%emt 0:01:34]} Qb2 {[%emt 0:00:26]} 21. a4 {[%emt 0:00:14]} Bc3 {[%emt 0:01:22]} 22. Bxc3 {[%emt 0:00:44]} Qxc3+ {[%emt 0:00:07]} 23. Kf1 {[%emt 0:00:03]} d4 {[%emt 0:01:55]} 24. Qd3 {[%emt 0:04:04]} Qxd3 {[%emt 0:21:30]} 25. exd3 {[%emt 0:00:08]} Rc8 {[%emt 0:01:03]} 26. a5 {[%emt 0:09:05]} Rc1+ {[%emt 0:13:19]} 27. Kg2 {[%emt 0:00:56]} Rxh1 {[%emt 0:01:04]} 28. Kxh1 {[%emt 0:00:03]} bxa5 {[%emt 0:00:13]} 29. Kg2 {[%emt 0:00:04]} f5 {[%emt 0:00:11]} 30. Kf3 {[%emt 0:00:15]} Kf7 {[%emt 0:00:07]} 31. g4 {[%emt 0:00:03]} Kf6 {[%emt 0:01:33]} 32. h3 {[%emt 0:07:08]} Ke5 {[%emt 0:02:36]} 33. h4 {[%emt 0:02:38]} f4 {[%emt 0:04:33]} 34. Ke2 {[%emt 0:02:29]} Kd5 {[%emt 0:00:20]} 35. Kf3 {[%emt 0:00:55]} Kc5 {[%emt 0:00:28]} 36. Kxf4 {[%emt 0:00:07]} Kb4 {[%emt 0:00:05]} 37. Kg5 {[%emt 0:00:15]} Kxb3 {[%emt 0:00:09]} 38. f4 {[%emt 0:00:05]} a4 {[%emt 0:01:35]} 39. f5 {[%emt 0:00:05]} a3 {[%emt 0:00:19]} 40. f6 {[%emt 0:00:00]} a2 {[%emt 0:00:00]} 41. Kh6 {[%emt 0:01:20]} a1=Q {[%emt 0:00:57]} 42. Kxh7 {[%emt 0:02:33]} Qf1 {[%emt 0:00:52]} 43. Kg7 {[%emt 0:12:58]} a5 {[%emt 0:00:57]} 44. f7 {[%emt 0:01:50]} a4 {[%emt 0:00:21]} 0-1